Cogmind - Beta 16.1 @@@ ROGUE MODE // 2026.04.12 @ 21:24:39 Player: Ammie Result: Destroyed by P-60 Hacker with Shock Rifle Performance ------------- Evolutions (1) 500 Regions Visited (5) 1000 Robots Destroyed (59) 295 Value Destroyed (1288) 1288 Prototype IDs (37) 740 Alien Tech Used (0) 0 Bonus (300) 300 TOTAL SCORE: 4123 Bonus ------- Aligned with FarCom 300 Cogmind --------- Core Integrity 0/400 Matter 245/300 Energy 100/100 System Corruption 3% Temperature Cool (0) Movement Core (400) Ox7 Location -9/Exiles Parts ------- > --- POWER (1) -------- (None) > --- PROPULSION (3) --- (None) > --- UTILITY (3) ------ Large Storage Unit 0b10 Alert Chip Hacking Suite > --- WEAPON (2) ------- Heavy Hammer > --- INVENTORY (15) --- Ion Engine Light Ion Engine Light Ion Engine Improved Flight Unit Improved Flight Unit Improved Flight Unit Improved Flight Unit Improved Heat Sink Light Assault Rifle Mini Grenade Launcher Datajack Peak State ------------ > --- POWER ------------ Improved Ion Engine > --- PROPULSION ------- Improved Flight Unit Improved Flight Unit Improved Flight Unit > --- UTILITY ---------- Large Storage Unit Large Storage Unit Hacking Suite > --- WEAPON ----------- Shotgun Light Cannon > --- INVENTORY -------- Ion Engine Light Ion Engine Light Ion Engine Improved Flight Unit Improved Heat Sink Heavy EM Pulse Gun Light Assault Rifle Light Assault Rifle Mini Grenade Launcher Datajack Heavy Hammer [Rating: 20] Favorites ----------- Power Ion Engine Engine Ion Engine Propulsion Light Treads Treads Light Treads Flight Unit Improved Flight Unit Utility Hacking Suite Storage Large Storage Unit Processor 0b10 Alert Chip Hackware Hacking Suite Protection Light Armor Plating Weapon Shotgun Energy Gun Heavy EM Pulse Gun Ballistic Gun Shotgun Ballistic Cannon Light Cannon Launcher Mini Grenade Launcher Impact Weapon Heavy Hammer Special Melee Weapon Datajack Build | -11 -10 -10 -9 -9 -9 ------- Run | Yrd Mat Min Mat Min Exi Slots Evolved 2 | . . . 2 . . Power . | . . . . . . Propulsion 1 | . . . 1 . . Utility 1 | . . . 1 . . Weapon . | . . . . . . Parts Attached 39 | 6 11 . 20 . 2 Power 6 | 1 1 . 4 . . Engine 6 | 1 1 . 4 . . Core . | . . . . . . Reactor . | . . . . . . Propulsion 10 | 2 1 . 7 . . Treads 7 | 2 1 . 4 . . Leg . | . . . . . . Wheel . | . . . . . . Hover . | . . . . . . Flight 3 | . . . 3 . . Utility 8 | 1 4 . 2 . 1 Device . | . . . . . . Storage 4 | 1 2 . 1 . . Processor 1 | . . . . . 1 Hackware 2 | . 1 . 1 . . Protection 1 | . 1 . . . . Artifact . | . . . . . . Weapon 15 | 2 5 . 7 . 1 Energy Gun 6 | 2 1 . 3 . . Energy Cannon . | . . . . . . Ballistic Gun 5 | . 4 . 1 . . Ballistic Cannon 1 | . . . 1 . . Launcher 1 | . . . 1 . . Special Weapon . | . . . . . . Impact Weapon 1 | . . . 1 . . Slashing Weapon . | . . . . . . Piercing Weapon . | . . . . . . Special Melee Weapon 1 | . . . . . 1 Unidentified Prototypes 3 | . . . 3 . . Parts Lost 22 | . 4 3 8 3 4 Power 6 | . 1 1 3 . 1 Propulsion 6 | . . 2 1 2 1 Utility 2 | . 1 . 1 . . Weapon 8 | . 2 . 3 1 2 Highest Loss Streak 4 | . 2 2 3 2 4 To Critical Strikes . | . . . . . . Average Backups 9 | 1 7 10 10 13 12 Power 2 | . 2 3 2 3 3 Propulsion 1 | . . . . 4 4 Utility 1 | . 1 3 1 1 1 Weapon 3 | . 2 3 4 4 3 Tool/Special . | . . . . . . Unused Backups 5 | . 1 . . . 4 Power 3 | . 1 . . . 2 Propulsion 1 | . . . . . 1 Utility 1 | . . . . . 1 Weapon . | . . . . . . Tool/Special . | . . . . . . Average Slot Usage (%) 78 | . 96 62 72 76 68 Engine 9 | . 13 . 8 11 10 Treads 15 | . 28 4 7 23 10 Flight 3 | . . . 7 . . Storage 12 | . 14 14 11 11 11 Hackware 12 | . 9 14 15 11 11 Energy Gun 3 | . 4 . 2 9 . Ballistic Gun 14 | . 23 28 12 . . Ballistic Cannon 4 | . . . 5 11 10 Peak Build Rating 20 | 6 12 12 20 14 18 Average Rating 11 | 5 9 9 13 12 13 On Entrance 8 | . 6 12 9 14 10 Avg Prop Armor Cover (%) 1 | . . . 1 . . Naked Turns . | . . . . . . Heaviest Build 53 | 14 31 26 53 33 31 Greatest Support 60 | 40 40 20 60 60 20 Greatest Overweight (x) 10 | . . 8 10 1 1 Average Overweight (x) 1 | . . 5 2 . 1 Largest Inventory Capacity 15 | 8 15 15 15 15 15 Average Capacity 13 | 7 10 15 15 15 15 Most Carried 13 | 2 10 10 13 13 13 Average Carried 9 | 1 7 10 10 13 12 Final Capacity 15 | 8 15 15 15 15 15 Final Carried 13 | 2 10 10 13 13 11 Class Distribution -------------------- 50% | Mutant 33% | Scavenger-Mutant 16% | Hacker-Mutant Dominant Class ---------------- Mutant | -10/Materials Mutant | -10/Mines Hacker-Mutant | -9/Materials Scavenger-Mutant | -9/Mines Scavenger-Mutant | -9/Exiles Resources | -11 -10 -10 -9 -9 -9 ----------- Run | Yrd Mat Min Mat Min Exi Matter Collected 1316 | 246 278 73 632 87 . Remotely . | . . . . . . Salvage Created 1947 | . 685 123 861 278 . Parts 121 | . 35 5 61 20 . Haulers Intercepted 6 | . 2 . 4 . . Recyclers Shooed . | . . . . . . Parts Field Recycled . | . . . . . . Retrieved Matter . | . . . . . . Parts Self-Destructed . | . . . . . . Prevented . | . . . . . . Parts Restored . | . . . . . . Kills | -11 -10 -10 -9 -9 -9 ------- Run | Yrd Mat Min Mat Min Exi Combat Hostiles Destroyed 38 | . 11 3 17 7 . Guns 26 | . 10 3 12 1 . Cannons 6 | . . . 2 4 . AOE 6 | . 1 . 3 2 . Classes Destroyed 9 | . 8 . 1 . . Worker 2 | . 1 . 1 . . Builder 2 | . 2 . . . . Hauler 6 | . 2 . 4 . . Recycler 5 | . 1 . 3 1 . Operator 2 | . 2 . . . . Watcher 4 | . 1 . 3 . . Swarmer 12 | . 3 . 7 2 . Grunt 23 | . 8 3 8 4 . Sentry 3 | . . . 2 1 . Best Kill Streak 6 | . 6 2 6 3 . Combat Bots Only 5 | . 5 2 4 2 . Max Kills in Single Turn 2 | . 2 1 2 2 . Gunslinging . | . . . . . . Exploded 2 | . 1 . 2 1 . Melee . | . . . . . . Uniques/NPCs Destroyed . | . . . . . . Combat | -11 -10 -10 -9 -9 -9 -------- Run | Yrd Mat Min Mat Min Exi Hostile Shots Fired 305 | . 73 24 116 73 19 Missed 83 | . 13 4 30 30 6 Hits 222 | . 60 20 86 43 13 Projectile 222 | . 60 20 86 43 13 Critical Strikes 6 | . 1 2 2 1 . Part Disruptions 1 | . . . . . 1 Damage Taken 2627 | . 720 280 846 587 194 Core 491 | . 74 13 175 141 88 Absorbed by Shields . | . . . . . . Core Remaining (%) 82 | 100 . 65 . . . Volleys Fired 207 | . 92 11 80 24 . Largest 2 | . 2 2 2 2 . Hottest 80 | . 80 46 75 75 . Shots Fired 349 | . 163 22 126 38 . Gun 299 | . 163 22 100 14 . Cannon 47 | . . . 23 24 . Launcher 3 | . . . 3 . . Special . | . . . . . . Kinetic 245 | . 100 22 99 24 . Thermal 29 | . 29 . . . . Explosive 3 | . . . 3 . . Electromagnetic 72 | . 34 . 24 14 . Robot Hit Streak 12 | . 12 6 8 10 . Robot Miss Streak 7 | . 7 3 6 4 . Penetration Max . | . . . . . . Secondary Targets 1 | . . . 1 . . Max Gunslinging Chain 1 | . . . 1 . . Shots Hit Robots 218 | . 96 19 76 20 7 Core Hits 92 | . 39 8 37 8 . Critical Kills . | . . . . . . Critical Parts Destroyed 1 | . . . . . 1 Critical Strikes 5 | . . . 3 1 1 Blast 4 | . . . 3 1 . Smash 1 | . . . . . 1 Melee Attacks 12 | . . . 2 . 10 Impact 9 | . . . 2 . 7 Slashing . | . . . . . . Piercing . | . . . . . . Sneak Attacks 4 | . . . 1 . 3 Combat Hostiles . | . . . . . . Follow-up Attacks . | . . . . . . Damage Inflicted 3578 | . 1161 314 1531 423 149 Guns 2389 | . 983 314 929 163 . Cannons 482 | . . . 270 212 . Explosions 485 | . 178 . 259 48 . Melee 222 | . . . 73 . 149 Ramming . | . . . . . . Kinetic 2040 | . 553 314 961 212 . Thermal 485 | . 352 . 85 48 . Explosive 174 | . . . 174 . . Electromagnetic 657 | . 256 . 238 163 . Impact 222 | . . . 73 . 149 Slashing . | . . . . . . Piercing . | . . . . . . Highest Corruption 3 | . . . . . 3 Average Corruption 2 | . . . . . 2 Corruption Purged . | . . . . . . Corruption Blocked . | . . . . . . Overload Shots . | . . . . . . Overflow Damage 115 | . 22 . 33 8 52 Projectiles 8 | . . . . 8 . Explosions 22 | . 22 . . . . Melee 85 | . . . 33 . 52 Knockbacks 6 | . . . 3 2 1 Impact 2 | . . . 1 . 1 Kinetic 3 | . . . 2 1 . Secondary 1 | . . . . 1 . Self-Inflicted Damage 102 | . 22 . 26 54 . Shots 3 | . 1 . 1 1 . Rammed 1 | . . . 1 . . Targets Rammed 1 | . . . 1 . . Kicked . | . . . . . . Crushed . | . . . . . . Highest Temperature 234 | . 234 35 24 63 . Average Temperature 49 | . 68 20 7 24 . Received Heat Transfer 933 | . 363 195 213 162 . Siege Activations . | . . . . . . Martial Activations . | . . . . . . Shielding Activations . | . . . . . . Robots Disrupted . | . . . . . . Combat Hostiles . | . . . . . . Robots Corrupted 1 | . . . 1 . . Combat Hostiles . | . . . . . . Parts Fried 2 | . . . 1 1 . Impact Corruptions 5 | . . . 2 . 3 Robots Melted . | . . . . . . Combat Hostiles . | . . . . . . Parts Melted 1 | . 1 . . . . Heat Transferred 800 | . 700 . 50 50 . Parts Sabotaged . | . . . . . . Parts Stolen . | . . . . . . Parts Stripped . | . . . . . . Power Chain Reactions 6 | . 4 . 1 1 . Alert | -11 -10 -10 -9 -9 -9 ------- Run | Yrd Mat Min Mat Min Exi Maximum Alert Level . | . . . . . . Low Security (%) 100 | 100 100 100 100 100 . Level 1 . | . . . . . . Level 2 . | . . . . . . Level 3 . | . . . . . . Level 4 . | . . . . . . Level 5 . | . . . . . . High Security . | . . . . . . Max Security . | . . . . . . Peak Influence 147 | . 109 40 147 138 . Initial 55 | . . . . 55 . Average 27 | . 17 5 35 49 . Influence Increases 1249 | . 378 95 578 198 . Destroy 0b10 Robot/C 760 | . 220 60 340 140 . Destroy 0b10 Robot/NC 105 | . 45 . 55 5 . Destroy Leader 190 | . 66 20 74 30 . Successful Hack 24 | . 15 . 9 . . Disable Machine 15 | . . . 15 . . Destroy Structure 50 | . 17 . 25 8 . Partial Spotted 15 | . 15 . . . . Lose Combat Pursuer 90 | . . 15 60 15 . Influence Decreases 1249 | . 378 95 435 341 . Entered New Map 88 | . . . . 88 . Time Decay 1033 | . 338 95 367 233 . Lost Part 128 | . 40 . 68 20 . Squads Dispatched 7 | . 3 . 4 . . Investigation 3 | . 1 . 2 . . Extermination . | . . . . . . Reinforcement 4 | . 2 . 2 . . Assault . | . . . . . . Garrison . | . . . . . . Intercept . | . . . . . . Searches Triggered . | . . . . . . Construction Impeded 1 | . . . 1 . . Haulers Reinforced . | . . . . . . Active Scanning Responses . | . . . . . . Cargo Convoy Interrupts . | . . . . . . Stealth | -11 -10 -10 -9 -9 -9 --------- Run | Yrd Mat Min Mat Min Exi Distress Signals 2 | . . . 2 . . Communications Jammed . | . . . . . . Distress Signals . | . . . . . . Times Spotted 73 | . 27 4 29 10 3 Peak Tracking Total 7 | . 3 2 7 4 3 Tactical Retreats 4 | . . 1 2 1 . Traps | -11 -10 -10 -9 -9 -9 ------- Run | Yrd Mat Min Mat Min Exi Traps Triggered 3 | . 1 . 2 . . Indirectly . | . . . . . . Trap Hack Attempts . | . . . . . . Triggered . | . . . . . . Disarmed . | . . . . . . Reprogrammed . | . . . . . . Reused . | . . . . . . Traps Extracted . | . . . . . . Installed . | . . . . . . Triggered . | . . . . . . Machines | -11 -10 -10 -9 -9 -9 ---------- Run | Yrd Mat Min Mat Min Exi Machines Disabled 2 | . . . 2 . . Max in Single Turn 1 | . . . 1 . . Machines Repaired . | . . . . . . Machines Dismantled . | . . . . . . Machines Sabotaged . | . . . . . . Overloaded Fab Kills . | . . . . . . Hacking | -11 -10 -10 -9 -9 -9 --------- Run | Yrd Mat Min Mat Min Exi Machines Accessed 13 | . 6 . 6 . 1 Terminals 11 | . 6 . 5 . . Fabricators . | . . . . . . Repair Stations . | . . . . . . Recycling Units . | . . . . . . Scanalyzers 1 | . . . 1 . . Garrison Access . | . . . . . . Total Hacks 35 | . 20 . 14 . 1 Successful 23 | . 11 . 11 . 1 Failed 12 | . 9 . 3 . . Catastrophic . | . . . . . . Database Lockouts . | . . . . . . Manual 27 | . 14 . 12 . 1 Terminals 32 | . 20 . 12 . . Fabricators . | . . . . . . Repair Stations . | . . . . . . Recycling Units . | . . . . . . Scanalyzers 2 | . . . 2 . . Garrison Access . | . . . . . . Terminal Hacks 7 | . 4 . 2 . 1 Branch Access Points 1 | . . . 1 . . Locate Traps 1 | . 1 . . . . Transport Status 1 | . 1 . . . . Registered Components 1 | . . . 1 . . Zone Layout 2 | . 2 . . . . Proto ID Catalog 1 | . . . . . 1 Fabricator Hacks . | . . . . . . Repair Station Hacks . | . . . . . . Recycling Unit Hacks . | . . . . . . Scanalyzer 2 | . . . 2 . . Insert Component 1 | . . . 1 . . Analyze 1 | . . . 1 . . Garrison Access Hacks . | . . . . . . Unauthorized Hacks 14 | . 7 . 7 . . Terminals 14 | . 7 . 7 . . Botnet 9 | . 5 . 4 . . Operators 5 | . 2 . 3 . . Fabricators . | . . . . . . Repair Stations . | . . . . . . Recycling Units . | . . . . . . Scanalyzers . | . . . . . . Garrison Access . | . . . . . . Data Cores Recovered . | . . . . . . Used . | . . . . . . Hacking Detections 5 | . 3 . 2 . . Full Trace Events 2 | . 1 . 1 . . Feedback Events . | . . . . . . Feedback Blocked . | . . . . . . Robot Schematics Acquired . | . . . . . . Robots Built . | . . . . . . Authchips . | . . . . . . Time . | . . . . . . Total Robot Build Rating . | . . . . . . Part Schematics Acquired 1 | . . . 1 . . Parts Built . | . . . . . . Authchips . | . . . . . . Time . | . . . . . . Total Part Build Rating . | . . . . . . Part Studies Acquired . | . . . . . . Parts Repaired . | . . . . . . Time . | . . . . . . Parts Recycled . | . . . . . . Recycled Matter . | . . . . . . Retrieved Matter . | . . . . . . Retrieved Components . | . . . . . . Parts Scanalyzed 1 | . . . 1 . . Part Schematics Acquired 1 | . . . 1 . . Parts Damaged . | . . . . . . Bothacking | -11 -10 -10 -9 -9 -9 ------------ Run | Yrd Mat Min Mat Min Exi Used RIF Installer . | . . . . . . Robots Hacked 3 | . . . . . 3 Non-combat 2 | . . . . . 2 Combat 1 | . . . . . 1 Robot Hacks Applied 3 | . . . . . 3 parse_system 3 | . . . . . 3 Relay Couplers Released . | . . . . . . Fabnet Peak Effective % . | . . . . . . Robots Rewired . | . . . . . . Allies Hacked . | . . . . . . Hacks Repelled . | . . . . . . Allies | -11 -10 -10 -9 -9 -9 -------- Run | Yrd Mat Min Mat Min Exi Total Allies . | . . . . . . Largest Group . | . . . . . . Highest-Rated Group . | . . . . . . Highest-Rated Ally . | . . . . . . Total Orders . | . . . . . . Ally Attacks . | . . . . . . Total Damage . | . . . . . . Kills . | . . . . . . Allies Corrupted . | . . . . . . Allies Melted . | . . . . . . Intel | -11 -10 -10 -9 -9 -9 ------- Run | Yrd Mat Min Mat Min Exi Active Infowar (turns) . | . . . . . . Robot Analysis Total . | . . . . . . Derelict Logs Recovered 2 | . . . . 2 . Drone Launches . | . . . . . . Drone Recoveries . | . . . . . . Exploration | -11 -10 -10 -9 -9 -9 ------------- Run | Yrd Mat Min Mat Min Exi Turns Passed 6355 | 118 1934 554 2522 638 589 Spaces Moved 2644 | 68 968 140 919 316 233 Core 234 | 1 . 88 145 . . Treads 2196 | 67 968 52 560 316 233 Legs . | . . . . . . Wheels . | . . . . . . Hover . | . . . . . . Flight 214 | . . . 214 . . Fastest Speed 50 | 50 160 240 160 160 240 Average Speed 206 | 158 160 372 238 169 240 Slowest Speed 550 | 160 160 450 550 240 240 Overloaded Moves . | . . . . . . Propulsion Burnouts . | . . . . . . Robots Hopped . | . . . . . . Potential Cave-ins . | . . . . . . Cave-ins Triggered . | . . . . . . Exploration Rate (%) 50 | 4 96 26 59 78 40 Regions Visited 5 Branch Regions 3 Pre-discovered Areas . | . . . . . . Known Exits Taken 2 | . . . 1 1 . Unknown Exits Taken 3 | 1 1 1 . . . Scrap Searched 2 | . . 1 . 1 . Spaces Dug 3 | . . . 1 . 2 Terrain Destroyed 52 | . 16 . 24 10 2 Melee 3 | . . . 1 . 2 Projectile . | . . . . . . AOE 49 | . 16 . 23 10 . Terrain Rammed . | . . . . . . Walls Destroyed . | . . . . . . Machines Disabled . | . . . . . . Actions | -11 -10 -10 -9 -9 -9 --------- Run | Yrd Mat Min Mat Min Exi Total 3167 | 75 1205 154 1104 380 249 Wait 234 | . 123 4 64 41 2 Move 2639 | 67 967 139 918 315 233 Hop . | . . . . . . Pick Up 16 | 2 7 . 7 . . Fast Attach 22 | 6 4 . 11 . 1 Attach 8 | . 1 . 5 . 2 Detach . | . . . . . . Swap 22 | . 7 . 14 . 1 Drop 6 | . 4 . 2 . . Fire 207 | . 92 11 80 24 . Melee 12 | . . . 2 . 10 Ram 1 | . . . 1 . . Kick . | . . . . . . Crush . | . . . . . . Escape Stasis . | . . . . . . Rewire . | . . . . . . Trap . | . . . . . . Miscellaneous . | . . . . . . Route ------- -11/Scrapyard -10/Materials (discovered 6 exits: *Mat x3 / [*Min x2] / [*Sub]) -10/Mines (discovered 2 exits: *Mat / [*Sub]) -9/Materials (discovered 5 exits: [*Mat x2] / *Min x2 / Sto) -9/Mines (discovered 2 exits: [*Mat] / *Exi) -9/Exiles History --------- Turn | Location | Event 18 | -11/Scrapyard | Discovered new exit (range 15) 119 | -11/Scrapyard | Entered Materials 198 | -10/Materials | Discovered new exit (range 7) 314 | -10/Materials | Build established: Mutant 342 | -10/Materials | Discovered new exit (range 13) 503 | -10/Materials | Discovered new exit (range 11) 821 | -10/Materials | Discovered new exit (range 14) 907 | -10/Materials | Build established: Scavenger-Mutant 1224 | -10/Materials | Build established: Mutant 1328 | -10/Materials | Discovered new exit (range 10) 1691 | -10/Materials | Discovered new exit (range 5) 2053 | -10/Materials | Entered Mines 2454 | -10/Mines | Discovered new exit (range 6) 2458 | -10/Mines | Discovered new exit (range 15) 2607 | -10/Mines | Entered Materials 2607 | -9/Materials | Evolved 2 slots: Propulsion x1, Utility x1 2942 | -9/Materials | Build established: Hacker-Mutant 3126 | -9/Materials | Discovered new exit (range 15) 3735 | -9/Materials | Discovered new exit (range 9) 3833 | -9/Materials | Lost 3 parts (1p2w) 3984 | -9/Materials | Build established: Mutant 4354 | -9/Materials | Discovered new exit (range 15) 4921 | -9/Materials | Identified exit to Mines 4921 | -9/Materials | Identified exit to Storage 4935 | -9/Materials | Build established: Scavenger-Mutant 5129 | -9/Materials | Entered Mines 5203 | -9/Mines | Identified exit to Exiles 5245 | -9/Mines | Core integrity fell below 50% 5566 | -9/Mines | Discovered new exit (range 9) 5757 | -9/Mines | Deemed a non-threat by the Exiles lab entrance 5767 | -9/Mines | Entered Exiles 5827 | -9/Exiles | Met 8R-AWN 5873 | -9/Exiles | Met EX-HEX 5947 | -9/Exiles | Met EX-BIN 5977 | -9/Exiles | Aligned with FarCom system 5979 | -9/Exiles | Given EX-Vault access code 6075 | -9/Exiles | Opened EX-Vault 6092 | -9/Exiles | Found 0b10 Alert Chip 6142 | -9/Exiles | Warned to stay clear of 0b10 Research branches 6174 | -9/Exiles | Exiles lab attacked by MAIN.C 6329 | -9/Exiles | Core integrity fell below 20% 6356 | -9/Exiles | Destroyed by P-60 Hacker with Shock Rifle Last Messages --------------- 06193_ 8R-AWN: "We've got company!" 06197_ 8R-AWN: "I'll cover you all, get out of here!" 06203_ EX-HEX collects data from the Assembled Analyzer. 06209_ EXILES: Lab perimeter alert, evacuate immediately. 06215_ EX-BIN: "Not cool, MAIN.C, I don't even have my SDF Cannon ready..." 06331_ Lgt. Cannon destroyed. 06334_ Imp. Ion Engine destroyed. 06344_ Destroyed Gravmag System. 06344_ P-60 Hacker system corrupted by crushing effect. 06344_ P-60 Hacker knocked back. 06345_ Lgt. Treads destroyed. 06346_ P-60 Hacker suffers critical hit (Smash). 06346_ Destroyed Mic. Nuclear Core. 06346_ P-60 Hacker system corrupted by crushing effect. 06348_ P-60 Hacker resets P-60 Hacker, system corruption cleaned. 06352_ Lgt. Assault Rifle destroyed. 06353_ P-60 Hacker resets P-60 Hacker, system corruption cleaned. 06355_ Destroyed Target Analyzer. 06355_ P-60 Hacker system corrupted by crushing effect. Map ----- +----------------------------------------------------+ | ??????????????????????????# #????????????????? | | ??????????????????????????# #########????????? | | ??????????????????????????# ##""""""#????????? | | ??????????????????????????# ## """#????????? | | ??????????????????????????# X""#????????? | | ??????????????????????????# ## """#????????? | | ????????????????????####??# ##""""""#????????? | | ????????????????????"""""?# #########????????? | | ????????????????????""" ## #????????????????? | | ??????????????????#""X" #????????????????? | | ??????????????????#" #????????????????? | | ??????????????????#" ## #????????????????? | | ??????????????????#""""""?# #?#########??????? | | ???????????????????#"###??# #?#"""""""#??????? | | ??????????????????????????# #?#"""""""#??????? | | ??????????????????????????# #?#"""""""#??????? | | ?????????????????????????## ###"" """"#??????? | | ?????????????????????????#" """"#??????? | | ?????????????????????????#" """#??????? | | ?????????????????????????#" """#??????? | | ?????????????????????????#" """#??????? | | ?????????????????????????#" """#??????? | | ?????????????????????????#" """##?????? | | ?????????????????????????##p """""?????? | | ????????????????????????##pg """##?????? | | ????????????????????????#@#" "X" """"??????? | | ????????????????????????###" """ #??????? | | ??????????????????????????#" """""""""#??????? | | ?????????????????????????##" ###########??????? | | ????????????????????????##"" #????????????????? | | ??????????????????????###"" #????????????????? | | ?????????????????????"""""" ##???????????????? | | ????????????????????"" " "" ##???###########? | | ???????????????????""" " #####"""""""""## | | ?????????????????? " " """ """"# | | ???????????????? "" " | | ???????????????? " """ | | ????????????????? " " | | ????????????????? " " | | ????????????????? " | | ?????????????????? """""" | | ?????????????????? ######""" | | ??????????????????? ""#?????#####""" | | ????????????????????????????????##""" | | ?????????????????????????????????#"""" | | ?????????????????????????????????#"" | | ??????????????????????????????????""" | | ?????????????????????????????????? | | ?????????????????????????????????? | | ????????????????????????????????? | +----------------------------------------------------+ Best States ------------- Heat Dissipation 28 Energy Generation 12 Energy Capacity 265 Matter Stores 300 Matter Capacity 300 Sight Range 16 Terrain Scan Density 10 Armor Coverage 150 Evasion (%) 40 Recoil Reduction 3 Offensive Hacking 20 Item Schematics ----------------- Imp. Flight Unit | -9/Materials | Scanalyzed Robot Schematics ------------------ None Fabricated ------------ Nothing Repaired ---------- Nothing Studied --------- None Alien Tech Used ----------------- None Achievements -------------- None Challenges ------------ None Game ------ Seed LightOvertunedMicrothruster Manual? 0 Play Time 00:28:49 Cumulative 58.2 hours Start 2026.04.12 @ 20:58:27 End 2026.04.12 @ 21:24:39 Sessions 1 Manual Loads 0 Difficulty Rogue Special Mode None Game No. 99 Rogue 99 Adventurer 0 Explorer 0 Win Type - Total 0 Types 0/0/0/0/0/0/0/0/0/0 Lore% 21 Gallery% 29 Achievement% 24 Wizard Run 0 Options --------- Layout 0 ASCII 0 Keyboard 0 Movement Mouse Keybinds 0 Fullscreen 1 Font 24/Smallcaps Map View 38x25 Zoom Use 100% Tactical HUD 1 Map Filters NONE Filters NONE Steam 1 RUN: bd8526f2-b8d1-487c-b921-cf84e9920d6d